[Event "*** Titled Tuesday Blitz"]
[Site "Chess.com"]
[Date "2020.04.14"]
[Round "9"]
[White "Aryangholami"]
[Black "Gahan-MG"]
[Result "1-0"]
[WhiteElo "2720"]
[BlackElo "2534"]
[TimeControl "180+1"]
[EndTime "11:40:59 PDT"]
[Termination "Aryangholami won by checkmate"]

1. Nf3 {[%clk 0:03:00.9]} 1... Nf6 {[%clk 0:03:00]} 2. g3 {[%clk 0:03:01.8]}
2... g6 {[%clk 0:03:00.1]} 3. Bg2 {[%clk 0:03:02.7]} 3... Bg7 {[%clk 0:03:01]}
4. O-O {[%clk 0:03:03.6]} 4... O-O {[%clk 0:03:01.9]} 5. b3 {[%clk 0:03:03.8]}
5... d5 {[%clk 0:03:02.1]} 6. Bb2 {[%clk 0:03:04.4]} 6... c5 {[%clk 0:03:02.6]}
7. c4 {[%clk 0:03:04.9]} 7... d4 {[%clk 0:03:01.9]} 8. e3 {[%clk 0:03:05.2]}
8... Nc6 {[%clk 0:03:02.1]} 9. exd4 {[%clk 0:03:05.7]} 9... Nh5 {[%clk
0:03:01.4]} 10. Re1 {[%clk 0:03:02.4]} 10... Bg4 {[%clk 0:02:56.2]} 11. h3
{[%clk 0:02:57.7]} 11... Bc8 {[%clk 0:02:52.9]} 12. Na3 {[%clk 0:02:54.9]} 12...
cxd4 {[%clk 0:02:50.3]} 13. d3 {[%clk 0:02:53.1]} 13... a6 {[%clk 0:02:47.7]}
14. Nc2 {[%clk 0:02:53]} 14... e5 {[%clk 0:02:47.3]} 15. b4 {[%clk 0:02:52.6]}
15... Re8 {[%clk 0:02:45.7]} 16. a4 {[%clk 0:02:50.9]} 16... f5 {[%clk
0:02:26.3]} 17. b5 {[%clk 0:02:47.3]} 17... Na5 {[%clk 0:02:25.9]} 18. Nb4
{[%clk 0:02:43.4]} 18... Be6 {[%clk 0:02:13.2]} 19. Nxe5 {[%clk 0:02:38.7]}
19... Qd6 {[%clk 0:02:11.8]} 20. bxa6 {[%clk 0:02:18.2]} 20... Qxb4 {[%clk
0:02:05.4]} 21. axb7 {[%clk 0:02:13.1]} 21... Rab8 {[%clk 0:01:49.6]} 22. Bxd4
{[%clk 0:02:11.9]} 22... Qd6 {[%clk 0:01:35]} 23. Ba7 {[%clk 0:01:43.7]} 23...
Bxe5 {[%clk 0:01:33]} 24. d4 {[%clk 0:01:37.3]} 24... Bg7 {[%clk 0:01:18.5]} 25.
Bxb8 {[%clk 0:01:32.8]} 25... Rxb8 {[%clk 0:01:15.9]} 26. Rxe6 {[%clk
0:01:32.6]} 26... Qxd4 {[%clk 0:01:13.8]} 27. Qxd4 {[%clk 0:01:31.1]} 27... Bxd4
{[%clk 0:01:14.7]} 28. Rd1 {[%clk 0:01:28.1]} 28... Nxb7 {[%clk 0:00:54]} 29.
Rxd4 {[%clk 0:01:26]} 29... Nc5 {[%clk 0:00:54.5]} 30. Re7 {[%clk 0:01:23.8]}
30... Nf6 {[%clk 0:00:52.6]} 31. Rd6 {[%clk 0:01:21.3]} 31... Nce4 {[%clk
0:00:46.1]} 32. Bxe4 {[%clk 0:01:20.4]} 32... Nxe4 {[%clk 0:00:47]} 33. Rdd7
{[%clk 0:01:20.5]} 33... Rb1+ {[%clk 0:00:47.2]} 34. Kg2 {[%clk 0:01:20.5]}
34... Rb2 {[%clk 0:00:47.7]} 35. Re8# {[%clk 0:01:20.5]} 1-0

[Event "*** Titled Tuesday Blitz"]
[Site "Chess.com"]
[Date "2020.04.14"]
[Round "9"]
[White "LimeInTheCoconut"]
[Black "Grandmaster2B"]
[Result "1-0"]
[WhiteElo "2374"]
[BlackElo "2518"]
[TimeControl "180+1"]
[EndTime "11:40:59 PDT"]
[Termination "LimeInTheCoconut won by checkmate"]

1. Nf3 {[%clk 0:03:00.9]} 1... Nf6 {[%clk 0:02:59.1]} 2. c4 {[%clk 0:03:00.3]}
2... e6 {[%clk 0:02:59.2]} 3. g3 {[%clk 0:02:58.8]} 3... c5 {[%clk 0:02:57.5]}
4. Bg2 {[%clk 0:02:58.9]} 4... Nc6 {[%clk 0:02:58.4]} 5. O-O {[%clk 0:02:59]}
5... Be7 {[%clk 0:02:58.3]} 6. b3 {[%clk 0:02:55.1]} 6... O-O {[%clk 0:02:58.1]}
7. Bb2 {[%clk 0:02:55.6]} 7... d5 {[%clk 0:02:58.7]} 8. cxd5 {[%clk 0:02:55.5]}
8... exd5 {[%clk 0:02:59.6]} 9. d4 {[%clk 0:02:55.6]} 9... cxd4 {[%clk
0:02:53.4]} 10. Nxd4 {[%clk 0:02:55.2]} 10... Be6 {[%clk 0:02:54.3]} 11. Nc3
{[%clk 0:02:51.7]} 11... Rc8 {[%clk 0:02:52.8]} 12. Nxe6 {[%clk 0:02:42.4]}
12... fxe6 {[%clk 0:02:53.7]} 13. Rc1 {[%clk 0:02:36.1]} 13... a6 {[%clk
0:02:48.6]} 14. Bh3 {[%clk 0:02:23.8]} 14... Qd7 {[%clk 0:02:42.7]} 15. e4
{[%clk 0:02:14.1]} 15... d4 {[%clk 0:02:18.8]} 16. Ne2 {[%clk 0:02:00]} 16...
Nxe4 {[%clk 0:02:15.6]} 17. Nxd4 {[%clk 0:01:58.1]} 17... Ng5 {[%clk 0:02:04.5]}
18. Bg4 {[%clk 0:01:43.1]} 18... Nxd4 {[%clk 0:02:01.6]} 19. Qxd4 {[%clk
0:01:41.4]} 19... Qxd4 {[%clk 0:01:57.6]} 20. Bxd4 {[%clk 0:01:42.3]} 20... Rcd8
{[%clk 0:01:46]} 21. Be3 {[%clk 0:01:36.5]} 21... Nf3+ {[%clk 0:01:45.1]} 22.
Kg2 {[%clk 0:01:34]} 22... Ne5 {[%clk 0:01:43.8]} 23. Bxe6+ {[%clk 0:01:33.5]}
23... Kh8 {[%clk 0:01:44.7]} 24. Rc7 {[%clk 0:01:21.6]} 24... Bd6 {[%clk
0:01:37.5]} 25. Rxb7 {[%clk 0:01:21.3]} 25... a5 {[%clk 0:01:27.2]} 26. Rd1
{[%clk 0:01:17.4]} 26... Bb4 {[%clk 0:01:17.3]} 27. Rxd8 {[%clk 0:01:09]} 27...
Rxd8 {[%clk 0:01:18.2]} 28. Bb6 {[%clk 0:01:01.6]} 28... Re8 {[%clk 0:01:13.8]}
29. Bd4 {[%clk 0:00:47]} 29... Nc6 {[%clk 0:01:08.3]} 30. Bxg7# {[%clk
0:00:46.2]} 1-0

[Event "*** Titled Tuesday Blitz"]
[Site "Chess.com"]
[Date "2020.04.14"]
[Round "9"]
[White "profofchess"]
[Black "checkmatequen"]
[Result "1-0"]
[WhiteElo "2390"]
[BlackElo "2214"]
[TimeControl "180+1"]
[EndTime "11:41:00 PDT"]
[Termination "profofchess won by resignation"]

1. e4 {[%clk 0:03:00.9]} 1... c5 {[%clk 0:02:59.2]} 2. Nf3 {[%clk 0:03:00.5]}
2... e6 {[%clk 0:02:59.2]} 3. c3 {[%clk 0:02:58.5]} 3... d5 {[%clk 0:02:58.6]}
4. e5 {[%clk 0:02:58.1]} 4... d4 {[%clk 0:02:58.2]} 5. Bd3 {[%clk 0:02:55.5]}
5... Nc6 {[%clk 0:02:57.5]} 6. O-O {[%clk 0:02:54.3]} 6... Nge7 {[%clk
0:02:57.6]} 7. Re1 {[%clk 0:02:52.4]} 7... Ng6 {[%clk 0:02:57.1]} 8. g3 {[%clk
0:02:51.4]} 8... Be7 {[%clk 0:02:56.7]} 9. h4 {[%clk 0:02:47.2]} 9... Qc7 {[%clk
0:02:54.7]} 10. Qe2 {[%clk 0:02:46.8]} 10... b6 {[%clk 0:02:40.4]} 11. Na3
{[%clk 0:02:37.5]} 11... a6 {[%clk 0:02:38.8]} 12. Nc2 {[%clk 0:02:09.7]} 12...
Bb7 {[%clk 0:02:20.5]} 13. h5 {[%clk 0:02:05.1]} 13... Nf8 {[%clk 0:02:20.1]}
14. cxd4 {[%clk 0:02:05]} 14... cxd4 {[%clk 0:02:19]} 15. Ncxd4 {[%clk
0:02:02.7]} 15... Nxd4 {[%clk 0:02:19.2]} 16. Nxd4 {[%clk 0:02:03.1]} 16... Bc5
{[%clk 0:02:19.2]} 17. Nb3 {[%clk 0:02:01.1]} 17... O-O-O {[%clk 0:02:09]} 18.
Nxc5 {[%clk 0:01:55.1]} 18... Qxc5 {[%clk 0:02:07.9]} 19. Be4 {[%clk 0:01:54.9]}
19... Bd5 {[%clk 0:02:00.4]} 20. d3 {[%clk 0:01:44.7]} 20... Nd7 {[%clk
0:01:59.1]} 21. Be3 {[%clk 0:01:42.8]} 21... Qe7 {[%clk 0:01:53.8]} 22. Bxd5
{[%clk 0:01:37.8]} 22... exd5 {[%clk 0:01:53.1]} 23. Bd4 {[%clk 0:01:37.9]}
23... Kb7 {[%clk 0:01:52.8]} 24. e6 {[%clk 0:01:28.9]} 24... Nf6 {[%clk
0:01:44.7]} 25. h6 {[%clk 0:01:21.2]} 25... gxh6 {[%clk 0:01:20.1]} 26. Qf3
{[%clk 0:01:18.9]} 26... fxe6 {[%clk 0:00:59.3]} 27. Qxf6 {[%clk 0:01:09.8]}
27... Qb4 {[%clk 0:00:51.6]} 28. Rxe6 {[%clk 0:01:04.7]} 28... Rhf8 {[%clk
0:00:48.9]} 29. Rxb6+ {[%clk 0:01:04.2]} 1-0

[Event "*** Titled Tuesday Blitz"]
[Site "Chess.com"]
[Date "2020.04.14"]
[Round "9"]
[White "ChessFunMaker"]
[Black "annamaja"]
[Result "1-0"]
[WhiteElo "2365"]
[BlackElo "2187"]
[TimeControl "180+1"]
[EndTime "11:41:03 PDT"]
[Termination "ChessFunMaker won by resignation"]

1. c4 {[%clk 0:03:00.9]} 1... e5 {[%clk 0:02:59.6]} 2. g3 {[%clk 0:03:00.7]}
2... Nf6 {[%clk 0:02:59.8]} 3. Bg2 {[%clk 0:03:01]} 3... d5 {[%clk 0:02:58.7]}
4. cxd5 {[%clk 0:03:01.9]} 4... Nxd5 {[%clk 0:02:59.2]} 5. Nf3 {[%clk
0:03:02.4]} 5... Nc6 {[%clk 0:02:58.8]} 6. O-O {[%clk 0:03:03]} 6... Be7 {[%clk
0:02:58.6]} 7. d4 {[%clk 0:03:00]} 7... exd4 {[%clk 0:02:39.6]} 8. Nxd4 {[%clk
0:03:00.3]} 8... Nxd4 {[%clk 0:02:40.4]} 9. Qxd4 {[%clk 0:03:00.7]} 9... Nb6
{[%clk 0:02:36.3]} 10. Qxg7 {[%clk 0:02:41.3]} 10... Bf6 {[%clk 0:02:24.7]} 11.
Qh6 {[%clk 0:02:41.3]} 11... Nc4 {[%clk 0:02:10.5]} 12. Nc3 {[%clk 0:02:32.1]}
12... c6 {[%clk 0:01:29.5]} 13. Rd1 {[%clk 0:02:05.2]} 13... Qe7 {[%clk
0:01:00.7]} 14. Ne4 {[%clk 0:02:02.5]} 14... Be5 {[%clk 0:00:55.8]} 15. Bg5
{[%clk 0:02:02.9]} 15... f6 {[%clk 0:00:33]} 16. Nxf6+ {[%clk 0:01:44.6]} 16...
Kf7 {[%clk 0:00:28.3]} 17. Qh5+ {[%clk 0:01:20.7]} 17... Kg7 {[%clk 0:00:18.3]}
18. Bh6+ {[%clk 0:01:21]} 18... Kxf6 {[%clk 0:00:14.6]} 19. Bg5+ {[%clk
0:01:21.1]} 1-0

[Event "*** Titled Tuesday Blitz"]
[Site "Chess.com"]
[Date "2020.04.14"]
[Round "9"]
[White "Fh2411"]
[Black "GuerrieroFromLevant"]
[Result "0-1"]
[WhiteElo "2458"]
[BlackElo "2370"]
[TimeControl "180+1"]
[EndTime "11:41:05 PDT"]
[Termination "GuerrieroFromLevant won on time"]

1. d4 {[%clk 0:03:00.9]} 1... d5 {[%clk 0:02:59.8]} 2. Nf3 {[%clk 0:02:41.7]}
2... c5 {[%clk 0:02:58.9]} 3. c4 {[%clk 0:02:42.6]} 3... e6 {[%clk 0:02:58]} 4.
e3 {[%clk 0:02:40.4]} 4... dxc4 {[%clk 0:02:57.7]} 5. Bxc4 {[%clk 0:02:31.3]}
5... Nf6 {[%clk 0:02:56.9]} 6. O-O {[%clk 0:02:26.6]} 6... a6 {[%clk 0:02:57.3]}
7. a4 {[%clk 0:02:23.9]} 7... Nc6 {[%clk 0:02:57.4]} 8. Nc3 {[%clk 0:02:22.7]}
8... Be7 {[%clk 0:02:54.1]} 9. Qe2 {[%clk 0:02:07.8]} 9... O-O {[%clk
0:02:52.1]} 10. Rd1 {[%clk 0:02:06.9]} 10... Qc7 {[%clk 0:02:51.2]} 11. h3
{[%clk 0:01:55.6]} 11... Rd8 {[%clk 0:02:44.1]} 12. dxc5 {[%clk 0:01:17.7]}
12... Bxc5 {[%clk 0:02:43.7]} 13. e4 {[%clk 0:01:15.2]} 13... Rxd1+ {[%clk
0:02:38.9]} 14. Qxd1 {[%clk 0:01:14.4]} 14... Bd7 {[%clk 0:02:38.5]} 15. Bg5
{[%clk 0:01:12]} 15... Rd8 {[%clk 0:02:32.8]} 16. Bxf6 {[%clk 0:00:37.3]} 16...
gxf6 {[%clk 0:02:31.8]} 17. Qe2 {[%clk 0:00:37.5]} 17... Nd4 {[%clk 0:02:25.9]}
18. Nxd4 {[%clk 0:00:37.1]} 18... Bxd4 {[%clk 0:02:26.8]} 19. Rc1 {[%clk
0:00:36.1]} 19... Bc6 {[%clk 0:02:25.4]} 20. Rc2 {[%clk 0:00:23.7]} 20... Kf8
{[%clk 0:02:23.1]} 21. b3 {[%clk 0:00:20.5]} 21... Ke7 {[%clk 0:02:21.7]} 22.
Nd1 {[%clk 0:00:15.7]} 22... Qb6 {[%clk 0:02:19]} 23. Bd3 {[%clk 0:00:12.1]}
23... Bc5 {[%clk 0:02:14]} 24. Bc4 {[%clk 0:00:10.5]} 24... Qb4 {[%clk
0:02:10.7]} 25. Nb2 {[%clk 0:00:10.3]} 25... Bd4 {[%clk 0:02:06.2]} 26. Nd3
{[%clk 0:00:10.3]} 26... Qd6 {[%clk 0:02:06.6]} 27. Qf3 {[%clk 0:00:07.5]} 27...
b5 {[%clk 0:02:05.7]} 28. axb5 {[%clk 0:00:07.2]} 28... axb5 {[%clk 0:02:06]}
29. e5 {[%clk 0:00:02.7]} 29... fxe5 {[%clk 0:01:59.3]} 30. Qg4 {[%clk
0:00:01.7]} 30... bxc4 {[%clk 0:01:59.2]} 31. Rxc4 {[%clk 0:00:02]} 31... Bb5
{[%clk 0:01:57.1]} 32. Qh4+ {[%clk 0:00:02]} 32... Kd7 {[%clk 0:01:57]} 0-1

[Event "*** Titled Tuesday Blitz"]
[Site "Chess.com"]
[Date "2020.04.14"]
[Round "9"]
[White "Ave_Mariia"]
[Black "MPGM"]
[Result "0-1"]
[WhiteElo "2309"]
[BlackElo "2459"]
[TimeControl "180+1"]
[EndTime "11:41:07 PDT"]
[Termination "MPGM won by resignation"]

1. d4 {[%clk 0:03:00.9]} 1... d5 {[%clk 0:02:58.3]} 2. c4 {[%clk 0:03:00.8]}
2... Bf5 {[%clk 0:02:57.8]} 3. cxd5 {[%clk 0:02:54.3]} 3... Nf6 {[%clk
0:02:57.5]} 4. Nc3 {[%clk 0:02:53.5]} 4... Nxd5 {[%clk 0:02:55.9]} 5. Nf3 {[%clk
0:02:52]} 5... c6 {[%clk 0:02:46.8]} 6. e3 {[%clk 0:02:45.8]} 6... e6 {[%clk
0:02:46.1]} 7. Be2 {[%clk 0:02:36.5]} 7... Be7 {[%clk 0:02:35.6]} 8. O-O {[%clk
0:02:36.4]} 8... O-O {[%clk 0:02:34.8]} 9. Re1 {[%clk 0:02:17.9]} 9... Nd7
{[%clk 0:02:31.3]} 10. Bf1 {[%clk 0:02:12.7]} 10... Bg6 {[%clk 0:02:26.2]} 11.
e4 {[%clk 0:02:11.2]} 11... Nxc3 {[%clk 0:02:25.1]} 12. bxc3 {[%clk 0:02:12.1]}
12... Nf6 {[%clk 0:02:17.8]} 13. e5 {[%clk 0:02:10.4]} 13... Nd5 {[%clk
0:02:17.1]} 14. c4 {[%clk 0:02:01.7]} 14... Nb4 {[%clk 0:02:14.6]} 15. Re2
{[%clk 0:01:53.2]} 15... Bd3 {[%clk 0:02:10.7]} 16. Rd2 {[%clk 0:01:52.5]} 16...
Bg6 {[%clk 0:02:02.4]} 17. a3 {[%clk 0:01:49.7]} 17... Na6 {[%clk 0:02:00.3]}
18. Bb2 {[%clk 0:01:48]} 18... Nc7 {[%clk 0:01:57.4]} 19. Bd3 {[%clk 0:01:38.2]}
19... Bxd3 {[%clk 0:01:54.2]} 20. Rxd3 {[%clk 0:01:39.1]} 20... b5 {[%clk
0:01:54.4]} 21. Rc1 {[%clk 0:01:37.4]} 21... Rb8 {[%clk 0:01:52.7]} 22. Ba1
{[%clk 0:01:36.7]} 22... bxc4 {[%clk 0:01:45.6]} 23. Rxc4 {[%clk 0:01:36.3]}
23... Qd5 {[%clk 0:01:42.9]} 24. Rdc3 {[%clk 0:01:34.7]} 24... Nb5 {[%clk
0:01:38.6]} 25. Rc1 {[%clk 0:01:31.5]} 25... Bxa3 {[%clk 0:01:33.5]} 26. R1c2
{[%clk 0:01:25.6]} 26... c5 {[%clk 0:01:31]} 27. Qe2 {[%clk 0:01:15.8]} 27...
cxd4 {[%clk 0:01:29.9]} 28. Qd3 {[%clk 0:01:02.5]} 28... h6 {[%clk 0:01:08.4]}
29. h3 {[%clk 0:01:01.8]} 29... Rfd8 {[%clk 0:01:06.4]} 30. Bxd4 {[%clk
0:00:59.9]} 30... Bf8 {[%clk 0:00:58.9]} 31. Rc5 {[%clk 0:00:55.9]} 31... Bxc5
{[%clk 0:00:57.9]} 0-1

[Event "*** Titled Tuesday Blitz"]
[Site "Chess.com"]
[Date "2020.04.14"]
[Round "9"]
[White "SahaNeelash"]
[Black "varacalli"]
[Result "0-1"]
[WhiteElo "2537"]
[BlackElo "2400"]
[TimeControl "180+1"]
[EndTime "11:41:08 PDT"]
[Termination "varacalli won by resignation"]

1. d4 {[%clk 0:03:00.9]} 1... Nf6 {[%clk 0:02:59.1]} 2. Bg5 {[%clk 0:03:00.9]}
2... d5 {[%clk 0:02:57.3]} 3. e3 {[%clk 0:03:00.4]} 3... e6 {[%clk 0:02:56.8]}
4. Nd2 {[%clk 0:02:59.8]} 4... Be7 {[%clk 0:02:57]} 5. Bd3 {[%clk 0:02:59.7]}
5... b6 {[%clk 0:02:56.8]} 6. c3 {[%clk 0:02:59.5]} 6... Bb7 {[%clk 0:02:57.1]}
7. Bxf6 {[%clk 0:02:58.1]} 7... Bxf6 {[%clk 0:02:54.7]} 8. f4 {[%clk 0:02:58.6]}
8... Nc6 {[%clk 0:02:50.5]} 9. Ngf3 {[%clk 0:02:58.4]} 9... Ne7 {[%clk
0:02:50.1]} 10. Ne5 {[%clk 0:02:52]} 10... a6 {[%clk 0:02:48.1]} 11. Qa4+ {[%clk
0:02:43.3]} 11... b5 {[%clk 0:02:46.1]} 12. Bxb5+ {[%clk 0:02:36.8]} 12... axb5
{[%clk 0:02:40.4]} 13. Qxb5+ {[%clk 0:02:37.7]} 13... Bc6 {[%clk 0:02:40.1]} 14.
Nxc6 {[%clk 0:02:30.6]} 14... Qd7 {[%clk 0:02:40.1]} 15. Na7 {[%clk 0:02:17.9]}
15... Rxa7 {[%clk 0:02:37.1]} 16. Qb8+ {[%clk 0:02:17.3]} 16... Nc8 {[%clk
0:02:36.8]} 17. a4 {[%clk 0:02:16.5]} 17... O-O {[%clk 0:02:36.5]} 18. a5 {[%clk
0:02:16.3]} 18... c5 {[%clk 0:02:32.9]} 19. a6 {[%clk 0:02:14.5]} 19... cxd4
{[%clk 0:02:30.5]} 20. cxd4 {[%clk 0:02:10.7]} 20... Nd6 {[%clk 0:02:28.5]} 21.
Qb4 {[%clk 0:02:03.6]} 21... Rfa8 {[%clk 0:02:28]} 22. O-O {[%clk 0:01:57.8]}
22... Rxa6 {[%clk 0:02:24.2]} 23. Rxa6 {[%clk 0:01:57]} 23... Rxa6 {[%clk
0:02:25.1]} 24. Rc1 {[%clk 0:01:57.2]} 24... Ra8 {[%clk 0:02:21.5]} 25. Nf3
{[%clk 0:01:56.6]} 25... g6 {[%clk 0:02:20]} 26. Ne5 {[%clk 0:01:55.8]} 26...
Bxe5 {[%clk 0:02:19.7]} 27. fxe5 {[%clk 0:01:56.7]} 27... Ne4 {[%clk 0:02:17.2]}
28. h4 {[%clk 0:01:53.2]} 28... Rc8 {[%clk 0:02:15.1]} 29. Ra1 {[%clk
0:01:51.6]} 29... Qd8 {[%clk 0:02:11.7]} 30. Qb7 {[%clk 0:01:47.3]} 30... Rb8
{[%clk 0:02:07.4]} 31. Qc6 {[%clk 0:01:45.6]} 31... Qxh4 {[%clk 0:01:59.2]} 32.
Rf1 {[%clk 0:01:23.2]} 32... Qg3 {[%clk 0:01:49.9]} 33. Rf3 {[%clk 0:01:15.5]}
33... Qe1+ {[%clk 0:01:45.1]} 34. Kh2 {[%clk 0:01:15.5]} 34... Qh4+ {[%clk
0:01:45.5]} 35. Rh3 {[%clk 0:01:07.6]} 35... Qg5 {[%clk 0:01:43.5]} 36. Rf3
{[%clk 0:01:06.2]} 36... Qe7 {[%clk 0:01:31]} 37. Qc2 {[%clk 0:00:56.5]} 37...
Qb7 {[%clk 0:01:29]} 0-1

[Event "*** Titled Tuesday Blitz"]
[Site "Chess.com"]
[Date "2020.04.14"]
[Round "9"]
[White "TigrVShlyape"]
[Black "FairChess_on_YouTube"]
[Result "1-0"]
[WhiteElo "2881"]
[BlackElo "2984"]
[TimeControl "180+1"]
[EndTime "11:41:12 PDT"]
[Termination "TigrVShlyape won by resignation"]

1. d4 {[%clk 0:03:00.9]} 1... g6 {[%clk 0:03:00.9]} 2. Nf3 {[%clk 0:03:00.9]}
2... d6 {[%clk 0:03:00]} 3. c3 {[%clk 0:03:01]} 3... Bg7 {[%clk 0:03:00]} 4. Bf4
{[%clk 0:02:57.9]} 4... Nf6 {[%clk 0:02:59.5]} 5. h3 {[%clk 0:02:57.8]} 5... O-O
{[%clk 0:02:56.3]} 6. Nbd2 {[%clk 0:02:56.1]} 6... Nbd7 {[%clk 0:02:55.3]} 7. e4
{[%clk 0:02:55.7]} 7... e5 {[%clk 0:02:53.7]} 8. dxe5 {[%clk 0:02:55.6]} 8...
dxe5 {[%clk 0:02:52.3]} 9. Be3 {[%clk 0:02:55.2]} 9... b6 {[%clk 0:02:50.3]} 10.
Qc2 {[%clk 0:02:52.9]} 10... Bb7 {[%clk 0:02:49.9]} 11. a4 {[%clk 0:02:52]}
11... Qe7 {[%clk 0:02:48.8]} 12. a5 {[%clk 0:02:15.5]} 12... Nc5 {[%clk
0:02:46.1]} 13. Ng5 {[%clk 0:02:02.3]} 13... Rad8 {[%clk 0:02:25.5]} 14. Bc4
{[%clk 0:01:32]} 14... Nh5 {[%clk 0:01:45.5]} 15. b4 {[%clk 0:01:13.3]} 15...
Nd7 {[%clk 0:01:22.3]} 16. Ngf3 {[%clk 0:01:05.1]} 16... Nf4 {[%clk 0:01:20.2]}
17. O-O {[%clk 0:01:04.4]} 17... Nf6 {[%clk 0:01:05.1]} 18. Rfe1 {[%clk
0:00:55.9]} 18... Bc6 {[%clk 0:00:56.9]} 19. axb6 {[%clk 0:00:53.9]} 19... axb6
{[%clk 0:00:56.7]} 20. Ra7 {[%clk 0:00:51.7]} 20... Qd6 {[%clk 0:00:43.3]} 21.
Bxf4 {[%clk 0:00:50]} 21... b5 {[%clk 0:00:33.7]} 22. Bxe5 {[%clk 0:00:48.4]}
1-0

[Event "*** Titled Tuesday Blitz"]
[Site "Chess.com"]
[Date "2020.04.14"]
[Round "9"]
[White "HouseOfDurin"]
[Black "floplover"]
[Result "1-0"]
[WhiteElo "2087"]
[BlackElo "2265"]
[TimeControl "180+1"]
[EndTime "11:41:12 PDT"]
[Termination "HouseOfDurin won by resignation"]

1. d4 {[%clk 0:03:00.9]} 1... Nf6 {[%clk 0:02:56.6]} 2. Bg5 {[%clk 0:03:01.3]}
2... e6 {[%clk 0:02:57.5]} 3. e4 {[%clk 0:03:00.9]} 3... h6 {[%clk 0:02:56.2]}
4. Bxf6 {[%clk 0:03:00.8]} 4... Qxf6 {[%clk 0:02:57.1]} 5. e5 {[%clk 0:03:01.2]}
5... Qd8 {[%clk 0:02:54.7]} 6. f4 {[%clk 0:03:01]} 6... d6 {[%clk 0:02:46.2]} 7.
Nf3 {[%clk 0:03:01.1]} 7... g6 {[%clk 0:02:19.1]} 8. c4 {[%clk 0:02:48.7]} 8...
dxe5 {[%clk 0:02:15.6]} 9. fxe5 {[%clk 0:02:45.3]} 9... b6 {[%clk 0:02:07.7]}
10. Nc3 {[%clk 0:02:43.7]} 10... Bb7 {[%clk 0:02:07.8]} 11. Qd2 {[%clk
0:02:34.1]} 11... h5 {[%clk 0:02:03]} 12. d5 {[%clk 0:02:11.7]} 12... Bh6 {[%clk
0:01:53.2]} 13. Qd3 {[%clk 0:02:10.5]} 13... exd5 {[%clk 0:01:26.7]} 14. cxd5
{[%clk 0:01:52.6]} 14... O-O {[%clk 0:01:12.2]} 15. e6 {[%clk 0:01:52.1]} 15...
Qe7 {[%clk 0:01:04]} 16. Be2 {[%clk 0:01:43.2]} 16... Na6 {[%clk 0:00:55.7]} 17.
O-O {[%clk 0:01:25.1]} 17... Nc5 {[%clk 0:00:55.4]} 18. Qc2 {[%clk 0:01:24.7]}
18... Kg7 {[%clk 0:00:46.8]} 19. Ne5 {[%clk 0:01:16]} 19... Be3+ {[%clk
0:00:20.3]} 20. Kh1 {[%clk 0:01:15.2]} 20... Qh4 {[%clk 0:00:19.2]} 21. Rxf7+
{[%clk 0:01:04.8]} 21... Rxf7 {[%clk 0:00:19.6]} 22. Qxg6+ {[%clk 0:01:04]} 1-0

[Event "*** Titled Tuesday Blitz"]
[Site "Chess.com"]
[Date "2020.04.14"]
[Round "9"]
[White "DishonorOnYourCow"]
[Black "Poghosyan_Suren"]
[Result "1-0"]
[WhiteElo "2305"]
[BlackElo "2494"]
[TimeControl "180+1"]
[EndTime "11:41:19 PDT"]
[Termination "DishonorOnYourCow won by checkmate"]

1. d4 {[%clk 0:03:00.9]} 1... Nf6 {[%clk 0:02:56.6]} 2. c4 {[%clk 0:02:59.2]}
2... e5 {[%clk 0:02:56.6]} 3. dxe5 {[%clk 0:02:57.8]} 3... Ng4 {[%clk
0:02:56.7]} 4. Bf4 {[%clk 0:02:57.3]} 4... Nc6 {[%clk 0:02:55]} 5. e3 {[%clk
0:02:55]} 5... Ngxe5 {[%clk 0:02:53.2]} 6. Nf3 {[%clk 0:02:51.1]} 6... Nxf3+
{[%clk 0:02:52.8]} 7. Qxf3 {[%clk 0:02:49.7]} 7... Bb4+ {[%clk 0:02:53.7]} 8.
Nc3 {[%clk 0:02:49.2]} 8... Bxc3+ {[%clk 0:02:52.1]} 9. bxc3 {[%clk 0:02:49.1]}
9... Qf6 {[%clk 0:02:53]} 10. Rc1 {[%clk 0:02:41]} 10... d6 {[%clk 0:02:49.8]}
11. Bd3 {[%clk 0:02:38.4]} 11... Bf5 {[%clk 0:02:44.4]} 12. Bxf5 {[%clk
0:02:23.2]} 12... Qxf5 {[%clk 0:02:45.3]} 13. Qd5 {[%clk 0:02:18.2]} 13... Qg6
{[%clk 0:02:31.7]} 14. O-O {[%clk 0:02:05.4]} 14... O-O {[%clk 0:02:31.3]} 15.
c5 {[%clk 0:02:03.8]} 15... dxc5 {[%clk 0:02:28.2]} 16. Qxc5 {[%clk 0:02:01.3]}
16... b6 {[%clk 0:02:21.6]} 17. Qc4 {[%clk 0:01:29.2]} 17... Rac8 {[%clk
0:02:19.6]} 18. Rfd1 {[%clk 0:01:25.6]} 18... Na5 {[%clk 0:02:09.2]} 19. Qa6
{[%clk 0:01:21.6]} 19... Qc6 {[%clk 0:02:06.9]} 20. Qxa7 {[%clk 0:01:12.4]}
20... g5 {[%clk 0:02:01]} 21. Bg3 {[%clk 0:01:06.2]} 21... f5 {[%clk 0:01:59.5]}
22. Qa6 {[%clk 0:01:01.6]} 22... f4 {[%clk 0:01:57.2]} 23. exf4 {[%clk 0:01:01]}
23... gxf4 {[%clk 0:01:58.1]} 24. Bh4 {[%clk 0:00:58.9]} 24... f3 {[%clk
0:01:57]} 25. Qd3 {[%clk 0:00:49.1]} 25... Nc4 {[%clk 0:01:49.8]} 26. Qd5+
{[%clk 0:00:35.4]} 26... Qxd5 {[%clk 0:01:49.3]} 27. Rxd5 {[%clk 0:00:36.3]}
27... Ra8 {[%clk 0:01:46.1]} 28. Rc2 {[%clk 0:00:30.9]} 28... Ra4 {[%clk
0:01:36.2]} 29. Rg5+ {[%clk 0:00:22.1]} 29... Kh8 {[%clk 0:01:31]} 30. Rg4
{[%clk 0:00:21.5]} 30... fxg2 {[%clk 0:01:24.3]} 31. Rxg2 {[%clk 0:00:18.1]}
31... Re8 {[%clk 0:01:19]} 32. Bf6# {[%clk 0:00:16.8]} 1-0